[Event "NOR-ch Elite 2019"]
[Site "Larvik"]
[Date "2019.07.05"]
[Round "1.2"]
[White "Mihajlov, Sebastian"]
[Black "Tari, Aryan"]
[Result "0-1"]
[ECO "A50"]
[WhiteElo "2375"]
[BlackElo "2620"]
[Annotator "RC"]
[PlyCount "152"]
[EventDate "2019.07.05"]
[EventType "swiss"]
[EventCountry "NOR"]
[SourceTitle "playchess.com"]
[Source "ChessBase"]
[SourceQuality "1"]
[TimeControl "40/5400+30:1800+30"]

1. d4 {[%emt 0:46:41]} Nf6 {[%emt 0:00:00]} 2. c4 {[%emt 0:00:03]} b6 {[%emt 0:00:00]} 3. Nc3 {[%emt 0:00:47]} Bb7 {[%emt 0:00:00]} 4. Qc2 {[%emt 0:01:50]} d5 {[%emt 0:00:08]} 5. cxd5 {[%emt 0:01:00]} Nxd5 {[%emt 0:00:10]} 6. Nxd5 {[%emt 0:01:14]} Qxd5 {[%emt 0:00:51]} 7. Nf3 {[%emt 0:01:47]} e6 {[%emt 0:07:47]} 8. e3 {[%emt 0:00:12]} Nd7 {[%emt 0:01:55]} 9. Bd3 {[%emt 0:05:06]} Bb4+ {[%emt 0:11:09]} 10. Bd2 {[%emt 0:01:05]} Bxd2+ {[%emt 0:03:46]} 11. Qxd2 {[%emt 0:00:05]} c5 {[%emt 0:05:16]} 12. O-O {[%emt 0:05:59]} cxd4 {[%emt 0:01:15]} 13. exd4 {[%emt 0:00:06]} O-O {[%emt 0:03:15]} 14. a3 {[%emt 0:03:28]} Rad8 {[%emt 0:06:16]} 15. Rfe1 {[%emt 0:03:22]} Nf6 {[%emt 0:01:10]} 16. Rad1 {[%emt 0:00:16]} Rd7 {[%emt 0:04:50]} 17. Bf1 {[%emt 0:02:18]} Rc8 {[%emt 0:03:49]} 18. Rc1 {[%emt 0:03:16]} Rxc1 {[%emt 0:05:03]} 19. Rxc1 {[%emt 0:00:05]} Qd6 {[%emt 0:01:04]} 20. Qe3 {[%emt 0:04:25]} Nd5 {[%emt 0:07:21]} 21. Qe5 {[%emt 0:00:27]} f6 {[%emt 0:01:17]} 22. Qxd6 {[%emt 0:00:06]} Rxd6 {[%emt 0:00:04]} 23. Nd2 {[%emt 0:04:58]} Kf8 {[%emt 0:01:27]} 24. g3 {[%emt 0:03:05]} Ke7 {[%emt 0:00:08]} 25. Bg2 {[%emt 0:00:30]} Kd8 {[%emt 0:00:24]} 26. f4 {[%emt 0:00:27]} Ba6 {[%emt 0:01:12]} 27. Kf2 {[%emt 0:04:13]} Ne7 {[%emt 0:00:56]} 28. Nf3 {[%emt 0:00:23]} Nf5 {[%emt 0:01:38]} 29. Rd1 {[%emt 0:00:04]} Bc4 {[%emt 0:10:29]} 30. Rd2 {[%emt 0:00:31]} Bd5 {[%emt 0:00:33]} 31. Bh3 {[%emt 0:00:05]} Ne7 {[%emt 0:00:23]} 32. Bg2 {[%emt 0:03:58]} Nc6 {[%emt 0:01:35]} 33. Ke3 {[%emt 0:00:02]} Na5 {[%emt 0:00:09]} 34. Rc2 {[%emt 0:02:22]} Nb3 {[%emt 0:00:05]} 35. Rc3 {[%emt 0:00:55]} Bxf3 {[%emt 0:02:24]} 36. Bxf3 {[%emt 0:00:02]} Nxd4 {[%emt 0:00:07]} 37. Be4 {[%emt 0:00:02]} h6 {[%emt 0:00:32]} 38. Rc4 {[%emt 0:01:18]} Nb3 {[%emt 0:02:21]} 39. Rc3 {[%emt 0:00:29]} Nd4 {[%emt 0:01:08]} 40. Rc4 {[%emt 0:00:05]} Nb3 {[%emt 0:02:43]} 41. Rc3 {[%emt 0:30:56]} Nc5 {[%emt 0:30:06]} 42. Bc2 {[%emt 0:00:03]} Na6 {[%emt 0:02:45]} 43. Be4 {[%emt 0:00:18]} Nc7 {[%emt 0:02:22]} 44. Rc4 {[%emt 0:01:52]} Kd7 {[%emt 0:02:56]} 45. f5 {[%emt 0:01:26]} e5 {[%emt 0:03:24]} 46. Bf3 {[%emt 0:00:00]} Kd8 {[%emt 0:00:00]} 47. a4 {[%emt 0:00:00]} Rd7 {[%emt 0:00:00]} 48. Bc6 {[%emt 0:00:00]} Rd1 {[%emt 0:00:00]} 49. b4 {[%emt 0:00:05]} h5 {[%emt 0:00:00]} 50. Rh4 {[%emt 0:00:00]} Ke7 {[%emt 0:00:00]} 51. Rxh5 {[%emt 0:00:00]} Rd4 {[%emt 0:00:00]} 52. Rh7 {[%emt 0:00:00]} Rxb4 {[%emt 0:00:00]} 53. Rxg7+ {[%emt 0:00:00]} Kd6 {[%emt 0:00:00]} 54. Be4 {[%emt 0:00:00]} Rb3+ {[%emt 0:00:00]} 55. Ke2 {[%emt 0:00:00]} Rb2+ {[%emt 0:00:00]} 56. Kf3 {[%emt 0:00:00]} Rxh2 {[%emt 0:00:00]} 57. Rg6 {[%emt 0:00:00]} Ne8 {[%emt 0:00:00]} 58. Bd3 {[%emt 0:00:00]} Ke7 {[%emt 0:00:00]} 59. Bb5 {[%emt 0:00:00]} Nd6 {[%emt 0:00:00]} 60. Rg7+ {[%emt 0:00:00]} Kf8 {[%emt 0:00:00]} 61. Rxa7 {[%emt 0:00:00]} e4+ {[%emt 0:00:00]} 62. Ke3 {[%emt 0:00:00]} Rg2 {[%emt 0:00:00]} 63. Rd7 {[%emt 0:00:00]} Rxg3+ {[%emt 0:00:00]} 64. Ke2 {[%emt 0:00:00]} Nxf5 {[%emt 0:00:00]} 65. Bc4 {[%emt 0:00:31]} Rg2+ {[%emt 0:00:00]} 66. Ke1 {[%emt 0:00:05]} Rg7 {[%emt 0:00:00]} 67. Rd8+ {[%emt 0:00:08]} Ke7 {[%emt 0:00:00]} 68. Rb8 {[%emt 0:00:03]} Rg1+ {[%emt 0:00:00]} 69. Kf2 {[%emt 0:00:08]} Rg4 {[%emt 0:00:24]} 70. Bb5 {[%emt 0:00:11]} Rf4+ {[%emt 0:00:36]} 71. Ke1 {[%emt 0:00:05]} Nd4 {[%emt 0:00:25]} 72. Rxb6 {[%emt 0:00:04]} e3 {[%emt 0:00:04]} 73. Rb8 {[%emt 0:00:27]} Rh4 {[%emt 0:06:04]} 74. Kf1 {[%emt 0:01:27]} Rh1+ {[%emt 0:03:08]} 75. Kg2 {[%emt 0:00:01]} Re1 {[%emt 0:00:08]} 76. Bc4 {[%emt 0:00:57]} Rc1 {[%emt 0:00:51]} 0-1

[Event "NOR-ch Elite 2019"]
[Site "Larvik"]
[Date "2019.07.05"]
[Round "1.3"]
[White "Urkedal, Frode Olav Olsen"]
[Black "Stokke, Kjetil"]
[Result "1-0"]
[ECO "B09"]
[WhiteElo "2566"]
[BlackElo "2336"]
[Annotator "ChessBase"]
[PlyCount "75"]
[EventDate "2019.07.05"]
[EventType "swiss"]
[EventCountry "NOR"]
[SourceTitle "playchess.com"]
[Source "ChessBase"]
[SourceQuality "1"]
[TimeControl "40/5400+30:1800+30"]

1. d4 {[%emt 0:00:00]} d6 {[%emt 0:00:00]} 2. e4 {[%emt 0:00:14]} Nf6 {[%emt 0:00:00]} 3. Nc3 {[%emt 0:00:08]} g6 {[%emt 0:00:07]} 4. f4 {[%emt 0:00:48]} Bg7 {[%emt 0:00:06]} 5. Nf3 {[%emt 0:00:05]} O-O {[%emt 0:00:05]} 6. a3 {[%emt 0:00:02]} Nc6 {[%emt 0:00:07]} 7. Be2 {[%emt 0:00:06]} Bg4 {[%emt 0:00:18]} 8. d5 {[%emt 0:00:28]} Nb8 {[%emt 0:00:10]} 9. h3 {[%emt 0:01:48]} Bxf3 {[%emt 0:00:05]} 10. Bxf3 {[%emt 0:00:04]} c6 {[%emt 0:00:07]} 11. O-O {[%emt 0:00:02]} Nbd7 {[%emt 0:00:43]} 12. Kh1 {[%emt 0:03:49]} Qc7 {[%emt 0:01:06]} 13. Qe2 {[%emt 0:03:34]} Rfe8 {[%emt 0:04:12]} 14. Be3 {[%emt 0:07:20]} Nb6 {[%emt 0:05:30]} 15. dxc6 {[%emt 0:33:23]} bxc6 {[%emt 0:00:23]} 16. Rad1 {[%emt 0:04:37]} e6 {[%emt 0:08:51]} 17. Bc1 {[%emt 0:06:54]} d5 {[%emt 0:02:08]} 18. Qf2 {[%emt 0:00:53]} Rab8 {[%emt 0:04:33]} 19. g4 {[%emt 0:02:42]} Nc4 {[%emt 0:13:59]} 20. b3 {[%emt 0:03:19]} Nb6 {[%emt 0:01:57]} 21. Bd2 {[%emt 0:02:11]} Nc8 {[%emt 0:12:18]} 22. Bg2 {[%emt 0:03:13]} Nxe4 {[%emt 0:02:24]} 23. Nxe4 {[%emt 0:00:40]} dxe4 {[%emt 0:00:05]} 24. Bxe4 {[%emt 0:01:09]} Nd6 {[%emt 0:00:34]} 25. Bg2 {[%emt 0:00:17]} Nb5 {[%emt 0:00:14]} 26. Qc5 {[%emt 0:03:50]} Bf8 {[%emt 0:08:25]} 27. Qf2 {[%emt 0:01:43]} Bxa3 {[%emt 0:03:10]} 28. c4 {[%emt 0:08:01]} Nd6 {[%emt 0:01:16]} 29. Bc3 {[%emt 0:00:33]} Qb6 {[%emt 0:07:23]} 30. Qh4 {[%emt 0:09:04]} Qd8 {[%emt 0:06:59]} 31. Bf6 {[%emt 0:00:23]} Qa5 {[%emt 0:00:33]} 32. Ra1 {[%emt 0:01:27]} Rec8 {[%emt 0:00:23]} 33. Qh6 {[%emt 0:00:49]} Ne8 {[%emt 0:00:08]} 34. Be7 {[%emt 0:00:05]} Ng7 {[%emt 0:01:45]} 35. Rxa3 {[%emt 0:00:05]} Qc3 {[%emt 0:00:15]} 36. Rxa7 {[%emt 0:01:41]} Ra8 {[%emt 0:00:11]} 37. Rxa8 {[%emt 0:00:31]} Rxa8 {[%emt 0:00:05]} 38. Qh4 {[%emt 0:00:52]} 1-0

[Event "NOR-ch Elite 2019"]
[Site "Larvik"]
[Date "2019.07.05"]
[Round "1.4"]
[White "Tryggestad, Andreas Garberg"]
[Black "Christiansen, Johan-Sebastian"]
[Result "1-0"]
[ECO "E01"]
[WhiteElo "2336"]
[BlackElo "2548"]
[Annotator "RC"]
[PlyCount "97"]
[EventDate "2019.07.05"]
[EventType "swiss"]
[EventCountry "NOR"]
[SourceTitle "playchess.com"]
[Source "ChessBase"]
[SourceQuality "1"]
[TimeControl "40/5400+30:1800+30"]

1. d4 {[%emt 0:04:01]} Nf6 {[%emt 0:00:00]} 2. c4 {[%emt 0:00:03]} e6 {[%emt 0:00:00]} 3. Nf3 {[%emt 0:00:05]} d5 {[%emt 0:00:00]} 4. Nc3 {[%emt 0:00:04]} c6 {[%emt 0:00:25]} 5. g3 {[%emt 0:00:58]} dxc4 {[%emt 0:00:22]} 6. Bg2 {[%emt 0:00:08]} Nbd7 {[%emt 0:01:07]} 7. e4 {[%emt 0:04:37]} b5 {[%emt 0:13:56]} 8. O-O {[%emt 0:12:30]} Bb7 {[%emt 0:04:38]} 9. e5 {[%emt 0:00:16]} Nd5 {[%emt 0:01:24]} 10. Ng5 {[%emt 0:00:07]} h6 {[%emt 0:00:21]} 11. Nxe6 {[%emt 0:00:21]} fxe6 {[%emt 0:00:07]} 12. Qh5+ {[%emt 0:00:05]} Ke7 {[%emt 0:00:13]} 13. Bg5+ {[%emt 0:00:06]} hxg5 {[%emt 0:00:07]} 14. Qxh8 {[%emt 0:00:05]} N7b6 {[%emt 0:03:50]} 15. Ne4 {[%emt 0:03:57]} Kd7 {[%emt 0:00:53]} 16. Qh5 {[%emt 0:01:02]} Qe8 {[%emt 0:01:34]} 17. Qxg5 {[%emt 0:02:55]} Qf7 {[%emt 0:00:10]} 18. Rac1 {[%emt 0:07:10]} Qf5 {[%emt 0:03:17]} 19. Qd2 {[%emt 0:01:55]} a5 {[%emt 0:17:22]} 20. f4 {[%emt 0:02:18]} Kc7 {[%emt 0:16:40]} 21. Ng5 {[%emt 0:01:05]} Bb4 {[%emt 0:06:24]} 22. Qe2 {[%emt 0:23:00]} Bc8 {[%emt 0:01:28]} 23. g4 {[%emt 0:05:01]} Nxf4 {[%emt 0:04:21]} 24. Qf3 {[%emt 0:00:16]} Ne2+ {[%emt 0:00:07]} 25. Qxe2 {[%emt 0:01:44]} Qxg5 {[%emt 0:00:08]} 26. Rf7+ {[%emt 0:07:58]} Bd7 {[%emt 0:01:28]} 27. Rcf1 {[%emt 0:00:26]} Bd2 {[%emt 0:02:17]} 28. Rd1 {[%emt 0:10:19]} Be3+ {[%emt 0:05:23]} 29. Kh1 {[%emt 0:07:04]} Rh8 {[%emt 0:01:11]} 30. h3 {[%emt 0:01:14]} Nd5 {[%emt 0:10:17]} 31. Qf3 {[%emt 0:02:36]} b4 {[%emt 0:01:36]} 32. Qe2 {[%emt 0:00:43]} Nb6 {[%emt 0:00:47]} 33. Qf3 {[%emt 0:00:50]} Nd5 {[%emt 0:00:14]} 34. Qe2 {[%emt 0:00:01]} Qg6 {[%emt 0:01:34]} 35. Rf3 {[%emt 0:01:46]} Qxg4 {[%emt 0:00:49]} 36. Re1 {[%emt 0:00:43]} Bg5 {[%emt 0:01:08]} 37. Qxc4 {[%emt 0:00:20]} Nf4 {[%emt 0:00:07]} 38. Qf1 {[%emt 0:00:36]} c5 {[%emt 0:01:19]} 39. d5 {[%emt 0:00:33]} Nxd5 {[%emt 0:01:11]} 40. Qa6 {[%emt 0:00:20]} Bc6 {[%emt 0:00:53]} 41. Qa7+ {[%emt 0:03:47]} Bb7 {[%emt 0:06:45]} 42. Rf7+ {[%emt 0:01:15]} Be7 {[%emt 0:00:14]} 43. Rxe7+ {[%emt 0:00:32]} Nxe7 {[%emt 0:00:02]} 44. Qxb7+ {[%emt 0:00:56]} Kd8 {[%emt 0:00:14]} 45. Qb6+ {[%emt 0:00:49]} Kd7 {[%emt 0:01:28]} 46. Qd6+ {[%emt 0:00:34]} Kc8 {[%emt 0:00:13]} 47. Qxc5+ {[%emt 0:00:23]} Kd7 {[%emt 0:00:48]} 48. Qd6+ {[%emt 0:00:13]} Ke8 {[%emt 0:00:10]} 49. Qb8+ {[%emt 0:00:10]} 1-0

[Event "NOR-ch Elite 2019"]
[Site "Larvik"]
[Date "2019.07.05"]
[Round "1.5"]
[White "Lie, Kjetil A."]
[Black "Vestby-Ellingsen, Mads"]
[Result "1/2-1/2"]
[ECO "D04"]
[WhiteElo "2538"]
[BlackElo "2335"]
[Annotator "ChessBase"]
[PlyCount "81"]
[EventDate "2019.07.05"]
[EventType "swiss"]
[EventCountry "NOR"]
[SourceTitle "playchess.com"]
[Source "ChessBase"]
[SourceQuality "1"]
[TimeControl "40/5400+30:1800+30"]

1. d4 {[%emt 0:00:00]} Nf6 {[%emt 0:00:00]} 2. Nf3 {[%emt 0:00:00]} d5 {[%emt 0:01:57]} 3. e3 {[%emt 0:00:22]} Bf5 {[%emt 0:02:57]} 4. Bd3 {[%emt 0:09:37]} Bg6 {[%emt 0:01:52]} 5. O-O {[%emt 0:01:13]} e6 {[%emt 0:00:28]} 6. c4 {[%emt 0:00:38]} c6 {[%emt 0:02:22]} 7. Qc2 {[%emt 0:00:24]} Nbd7 {[%emt 0:02:46]} 8. Nbd2 {[%emt 0:01:27]} Be7 {[%emt 0:03:46]} 9. b3 {[%emt 0:05:25]} O-O {[%emt 0:05:10]} 10. Bb2 {[%emt 0:00:49]} c5 {[%emt 0:04:30]} 11. Bxg6 {[%emt 0:02:04]} hxg6 {[%emt 0:00:16]} 12. dxc5 {[%emt 0:09:01]} Bxc5 {[%emt 0:05:17]} 13. Rfd1 {[%emt 0:05:54]} Qe7 {[%emt 0:09:27]} 14. Rac1 {[%emt 0:13:08]} Bb4 {[%emt 0:30:47]} 15. cxd5 {[%emt 0:01:46]} Nxd5 {[%emt 0:03:26]} 16. Nc4 {[%emt 0:11:52]} b5 {[%emt 0:08:51]} 17. Nce5 {[%emt 0:00:55]} Nxe5 {[%emt 0:00:54]} 18. Nxe5 {[%emt 0:00:06]} Qb7 {[%emt 0:02:45]} 19. Qc6 {[%emt 0:18:21]} Qb6 {[%emt 0:00:33]} 20. Qc2 {[%emt 0:03:58]} Qb7 {[%emt 0:00:59]} 21. Qe4 {[%emt 0:00:10]} Rfd8 {[%emt 0:07:46]} 22. Nc6 {[%emt 0:07:37]} Nf6 {[%emt 0:01:53]} 23. Bxf6 {[%emt 0:00:35]} gxf6 {[%emt 0:01:03]} 24. Qf3 {[%emt 0:03:49]} Ba3 {[%emt 0:00:19]} 25. Nxd8 {[%emt 0:02:03]} Qxf3 {[%emt 0:00:08]} 26. gxf3 {[%emt 0:00:02]} Bxc1 {[%emt 0:00:12]} 27. Nxf7 {[%emt 0:01:41]} Bxe3 {[%emt 0:00:30]} 28. fxe3 {[%emt 0:00:15]} Kxf7 {[%emt 0:00:08]} 29. Rd7+ {[%emt 0:00:02]} Kg8 {[%emt 0:00:39]} 30. Kf2 {[%emt 0:01:12]} a5 {[%emt 0:02:33]} 31. Rb7 {[%emt 0:00:09]} Rc8 {[%emt 0:00:10]} 32. Kg3 {[%emt 0:00:53]} Rc2 {[%emt 0:00:33]} 33. Rxb5 {[%emt 0:00:25]} Rxa2 {[%emt 0:00:08]} 34. Rb6 {[%emt 0:00:18]} Kf7 {[%emt 0:00:12]} 35. Rb7+ {[%emt 0:00:03]} Kg8 {[%emt 0:00:17]} 36. e4 {[%emt 0:00:44]} e5 {[%emt 0:00:51]} 37. h4 {[%emt 0:00:39]} a4 {[%emt 0:00:47]} 38. bxa4 {[%emt 0:00:36]} Rxa4 {[%emt 0:00:09]} 39. Kg4 {[%emt 0:00:35]} Ra1 {[%emt 0:00:52]} 40. Kg3 {[%emt 0:00:04]} Rg1+ {[%emt 0:00:42]} 41. Kh2 {[%emt 0:30:08]} 1/2-1/2

[Event "NOR-ch Elite 2019"]
[Site "Larvik"]
[Date "2019.07.05"]
[Round "1.6"]
[White "Moen, Andreas G.R."]
[Black "Notkevich, Benjamin Arvola"]
[Result "1/2-1/2"]
[ECO "A85"]
[WhiteElo "2322"]
[BlackElo "2497"]
[Annotator "RC"]
[PlyCount "111"]
[EventDate "2019.07.05"]
[EventType "swiss"]
[EventCountry "NOR"]
[SourceTitle "playchess.com"]
[Source "ChessBase"]
[SourceQuality "1"]
[TimeControl "40/5400+30:1800+30"]

1. d4 {[%emt 0:12:20]} d5 {[%emt 0:12:01]} 2. c4 {[%emt 0:00:00]} c6 {[%emt 0:00:09]} 3. Nf3 {[%emt 0:00:00]} e6 {[%emt 0:00:12]} 4. e3 {[%emt 0:00:00]} Bd6 {[%emt 0:00:27]} 5. Nc3 {[%emt 0:00:00]} f5 {[%emt 0:00:20]} 6. Be2 {[%emt 0:07:12]} Nf6 {[%emt 0:00:37]} 7. Ne5 {[%emt 0:05:42]} O-O {[%emt 0:00:09]} 8. O-O {[%emt 0:00:27]} Bxe5 {[%emt 0:06:38]} 9. dxe5 {[%emt 0:00:43]} Ne4 {[%emt 0:00:03]} 10. Na4 {[%emt 0:04:15]} dxc4 {[%emt 0:15:28]} 11. f3 {[%emt 0:04:20]} Ng5 {[%emt 0:00:09]} 12. b3 {[%emt 0:10:27]} b5 {[%emt 0:05:31]} 13. Qxd8 {[%emt 0:09:18]} Rxd8 {[%emt 0:00:06]} 14. Nc5 {[%emt 0:00:12]} Rd5 {[%emt 0:19:56]} 15. Ba3 {[%emt 0:33:48]} Na6 {[%emt 0:13:43]} 16. Nxa6 {[%emt 0:04:41]} Bxa6 {[%emt 0:00:05]} 17. bxc4 {[%emt 0:00:17]} bxc4 {[%emt 0:00:22]} 18. h4 {[%emt 0:01:48]} Rxe5 {[%emt 0:03:55]} 19. Kf2 {[%emt 0:02:22]} Nf7 {[%emt 0:00:07]} 20. Rfc1 {[%emt 0:00:18]} Rd8 {[%emt 0:11:56]} 21. Bxc4 {[%emt 0:00:01]} Ra5 {[%emt 0:05:36]} 22. Bb4 {[%emt 0:00:59]} Ra4 {[%emt 0:00:06]} 23. Bxa6 {[%emt 0:00:37]} Rxa6 {[%emt 0:00:47]} 24. a3 {[%emt 0:01:17]} Ne5 {[%emt 0:00:05]} 25. Ke2 {[%emt 0:00:15]} Rd5 {[%emt 0:00:17]} 26. Rc3 {[%emt 0:00:16]} Rb6 {[%emt 0:00:26]} 27. Rac1 {[%emt 0:00:57]} a5 {[%emt 0:00:12]} 28. Bc5 {[%emt 0:00:22]} Rb2+ {[%emt 0:00:05]} 29. R1c2 {[%emt 0:00:27]} Rxc2+ {[%emt 0:01:05]} 30. Rxc2 {[%emt 0:00:01]} Nd7 {[%emt 0:00:38]} 31. Ba7 {[%emt 0:00:55]} c5 {[%emt 0:00:41]} 32. e4 {[%emt 0:01:00]} fxe4 {[%emt 0:02:26]} 33. fxe4 {[%emt 0:00:01]} Rd6 {[%emt 0:01:05]} 34. Rc3 {[%emt 0:00:58]} Rd4 {[%emt 0:00:41]} 35. Kf3 {[%emt 0:00:23]} Ne5+ {[%emt 0:00:48]} 36. Ke3 {[%emt 0:00:41]} Nc4+ {[%emt 0:00:17]} 37. Kf4 {[%emt 0:00:24]} e5+ {[%emt 0:00:25]} 38. Kf5 {[%emt 0:00:16]} g6+ {[%emt 0:00:29]} 39. Kf6 {[%emt 0:00:32]} Rd6+ {[%emt 0:00:45]} 40. Ke7 {[%emt 0:00:07]} Rd4 {[%emt 0:00:34]} 41. Bxc5 {[%emt 0:04:54]} Rxe4 {[%emt 0:00:23]} 42. Ke6 {[%emt 0:12:24]} Rxh4 {[%emt 0:15:46]} 43. Be7 {[%emt 0:00:09]} Rd4 {[%emt 0:00:21]} 44. Rb3 {[%emt 0:01:56]} g5 {[%emt 0:02:01]} 45. Bf6 {[%emt 0:07:39]} Rd6+ {[%emt 0:00:50]} 46. Kf5 {[%emt 0:04:37]} Rb6 {[%emt 0:01:00]} 47. Rxb6 {[%emt 0:02:10]} Nxb6 {[%emt 0:00:06]} 48. Bxe5 {[%emt 0:00:31]} Nc4 {[%emt 0:06:09]} 49. Bc3 {[%emt 0:00:09]} a4 {[%emt 0:00:06]} 50. Bb4 {[%emt 0:00:05]} Ne3+ {[%emt 0:01:07]} 51. Kxg5 {[%emt 0:00:07]} Nxg2 {[%emt 0:00:14]} 52. Bd2 {[%emt 0:00:05]} Kf7 {[%emt 0:01:13]} 53. Kg4 {[%emt 0:00:07]} Ke6 {[%emt 0:00:06]} 54. Kg3 {[%emt 0:00:04]} Kd5 {[%emt 0:00:04]} 55. Kxg2 {[%emt 0:00:06]} Kc6 {[%emt 0:00:03]} 56. Bb4 {[%emt 0:00:08]} 1/2-1/2

[Event "NOR-ch Elite 2019"]
[Site "Larvik"]
[Date "2019.07.05"]
[Round "1.7"]
[White "Hauge, Lars Oskar"]
[Black "Risting, Eivind Olav"]
[Result "1-0"]
[ECO "B23"]
[WhiteElo "2476"]
[BlackElo "2314"]
[Annotator "ChessBase"]
[PlyCount "63"]
[EventDate "2019.07.05"]
[EventType "swiss"]
[EventCountry "NOR"]
[SourceTitle "playchess.com"]
[Source "ChessBase"]
[SourceQuality "1"]
[TimeControl "40/5400+30:1800+30"]

1. e4 {[%emt 0:00:00]} c5 {[%emt 0:00:38]} 2. Nc3 {[%emt 0:00:22]} Nc6 {[%emt 0:01:26]} 3. f4 {[%emt 0:07:10]} g6 {[%emt 0:01:48]} 4. Nf3 {[%emt 0:00:52]} Bg7 {[%emt 0:00:39]} 5. Bb5 {[%emt 0:00:15]} Nd4 {[%emt 0:01:04]} 6. O-O {[%emt 0:00:07]} Nxb5 {[%emt 0:04:49]} 7. Nxb5 {[%emt 0:00:43]} d5 {[%emt 0:01:56]} 8. e5 {[%emt 0:02:36]} Qb6 {[%emt 0:24:24]} 9. Nc3 {[%emt 0:06:06]} d4 {[%emt 0:02:57]} 10. Ne4 {[%emt 0:01:45]} Nh6 {[%emt 0:00:37]} 11. b3 {[%emt 0:06:55]} Qc6 {[%emt 0:04:03]} 12. d3 {[%emt 0:00:06]} O-O {[%emt 0:01:04]} 13. Qe1 {[%emt 0:03:58]} Bg4 {[%emt 0:07:57]} 14. Nh4 {[%emt 0:18:20]} Be6 {[%emt 0:06:55]} 15. Bd2 {[%emt 0:00:45]} Bd5 {[%emt 0:03:27]} 16. f5 {[%emt 0:05:15]} Ng4 {[%emt 0:05:58]} 17. e6 {[%emt 0:01:12]} Ne3 {[%emt 0:07:03]} 18. f6 {[%emt 0:05:59]} exf6 {[%emt 0:03:10]} 19. Nxf6+ {[%emt 0:01:16]} Bxf6 {[%emt 0:02:44]} 20. Rxf6 {[%emt 0:00:12]} Bxe6 {[%emt 0:04:23]} 21. Bxe3 {[%emt 0:01:20]} dxe3 {[%emt 0:00:02]} 22. Qxe3 {[%emt 0:01:09]} Qd5 {[%emt 0:01:28]} 23. Raf1 {[%emt 0:01:36]} Kg7 {[%emt 0:02:36]} 24. R6f2 {[%emt 0:03:10]} Rae8 {[%emt 0:01:56]} 25. Qg3 {[%emt 0:00:16]} b6 {[%emt 0:01:12]} 26. Nf3 {[%emt 0:01:30]} h6 {[%emt 0:02:50]} 27. Ne5 {[%emt 0:01:55]} Qd4 {[%emt 0:02:38]} 28. Kh1 {[%emt 0:00:26]} Bd5 {[%emt 0:01:20]} 29. Rxf7+ {[%emt 0:01:29]} Bxf7 {[%emt 0:01:15]} 30. Rxf7+ {[%emt 0:00:08]} Kh8 {[%emt 0:01:15]} 31. Nxg6+ {[%emt 0:00:15]} Kg8 {[%emt 0:00:13]} 32. Ne5+ {[%emt 0:00:09]} 1-0

[Event "NOR-ch Elite 2019"]
[Site "Larvik"]
[Date "2019.07.05"]
[Round "1.8"]
[White "Skrondal, Inge Sandstad"]
[Black "Holm, Kristian Stuvik"]
[Result "0-1"]
[ECO "A81"]
[WhiteElo "2312"]
[BlackElo "2469"]
[Annotator "ChessBase"]
[PlyCount "61"]
[EventDate "2019.07.05"]
[EventType "swiss"]
[EventCountry "NOR"]
[SourceTitle "playchess.com"]
[Source "ChessBase"]
[SourceQuality "1"]
[TimeControl "40/5400+30:1800+30"]

1. d4 {[%emt 0:00:00]} f5 {[%emt 0:00:04]} 2. g3 {[%emt 0:00:16]} Nf6 {[%emt 0:00:12]} 3. Bg2 {[%emt 0:00:12]} g6 {[%emt 0:00:06]} 4. c3 {[%emt 0:02:33]} Bg7 {[%emt 0:00:53]} 5. Qb3 {[%emt 0:00:04]} Nc6 {[%emt 0:01:16]} 6. Nh3 {[%emt 0:03:00]} b6 {[%emt 0:00:52]} 7. Bxc6 {[%emt 0:09:04]} dxc6 {[%emt 0:00:34]} 8. Bf4 {[%emt 0:01:41]} h6 {[%emt 0:16:42]} 9. Be5 {[%emt 0:03:08]} g5 {[%emt 0:00:44]} 10. f4 {[%emt 0:00:59]} g4 {[%emt 0:00:27]} 11. Nf2 {[%emt 0:01:07]} Qd7 {[%emt 0:02:37]} 12. h3 {[%emt 0:06:04]} gxh3 {[%emt 0:09:09]} 13. Rxh3 {[%emt 0:02:50]} Ba6 {[%emt 0:05:30]} 14. Nd2 {[%emt 0:04:40]} O-O-O {[%emt 0:01:50]} 15. e3 {[%emt 0:22:20]} c5 {[%emt 0:05:45]} 16. O-O-O {[%emt 0:02:53]} Rhg8 {[%emt 0:07:25]} 17. dxc5 {[%emt 0:18:57]} Be2 {[%emt 0:00:57]} 18. c6 {[%emt 0:03:03]} Qxc6 {[%emt 0:00:38]} 19. Re1 {[%emt 0:00:44]} Ba6 {[%emt 0:03:33]} 20. e4 {[%emt 0:03:43]} Nxe4 {[%emt 0:07:33]} 21. Ndxe4 {[%emt 0:00:56]} Bxe5 {[%emt 0:00:39]} 22. fxe5 {[%emt 0:00:45]} fxe4 {[%emt 0:00:08]} 23. Nxe4 {[%emt 0:01:13]} Bd3 {[%emt 0:01:15]} 24. Nd2 {[%emt 0:01:15]} Bf5 {[%emt 0:01:27]} 25. Rh2 {[%emt 0:02:55]} Rxg3 {[%emt 0:02:14]} 26. Qc4 {[%emt 0:00:02]} Qg6 {[%emt 0:11:42]} 27. Qf4 {[%emt 0:01:47]} Qg5 {[%emt 0:02:01]} 28. Rf1 {[%emt 0:03:17]} Bd3 {[%emt 0:01:48]} 29. Qxg5 {[%emt 0:02:45]} hxg5 {[%emt 0:00:05]} 30. Re1 {[%emt 0:00:05]} Bf5 {[%emt 0:02:18]} 31. e6 {[%emt 0:03:13]} 0-1

[Event "NOR-ch Elite 2019"]
[Site "Larvik"]
[Date "2019.07.05"]
[Round "1.9"]
[White "Haldorsen, Benjamin"]
[Black "Vitenberg, Noam Aviv"]
[Result "1-0"]
[ECO "A13"]
[WhiteElo "2444"]
[BlackElo "2300"]
[Annotator "NA"]
[PlyCount "74"]
[EventDate "2019.07.05"]
[EventType "swiss"]
[EventCountry "NOR"]
[SourceTitle "playchess.com"]
[Source "ChessBase"]
[SourceQuality "1"]
[TimeControl "40/5400+30:1800+30"]

1. c4 {[%emt 0:00:00]} e6 {[%emt 0:00:00]} 2. g3 {[%emt 0:00:09]} d5 {[%emt 0:00:11]} 3. Nf3 {[%emt 0:00:18]} Nf6 {[%emt 0:01:36]} 4. Bg2 {[%emt 0:00:16]} d4 {[%emt 0:01:21]} 5. O-O {[%emt 0:00:21]} c5 {[%emt 0:03:06]} 6. e3 {[%emt 0:00:30]} Nc6 {[%emt 0:00:17]} 7. exd4 {[%emt 0:00:12]} cxd4 {[%emt 0:01:33]} 8. Re1 {[%emt 0:00:05]} Bd6 {[%emt 0:03:25]} 9. d3 {[%emt 0:00:00]} h6 {[%emt 0:01:51]} 10. Nbd2 {[%emt 0:00:00]} O-O {[%emt 0:01:22]} 11. Ne4 {[%emt 0:05:51]} Nxe4 {[%emt 0:15:57]} 12. Rxe4 {[%emt 0:00:01]} e5 {[%emt 0:04:17]} 13. c5 {[%emt 0:19:03]} Bxc5 {[%emt 0:09:39]} 14. Nxe5 {[%emt 0:00:24]} Nxe5 {[%emt 0:10:09]} 15. Rxe5 {[%emt 0:01:08]} Qb6 {[%emt 0:02:23]} 16. Qh5 {[%emt 0:01:51]} Bd6 {[%emt 0:05:13]} 17. Rb5 {[%emt 0:03:55]} Qa6 {[%emt 0:08:40]} 18. a4 {[%emt 0:08:30]} Re8 {[%emt 0:08:12]} 19. Bd5 {[%emt 0:08:30]} Re1+ {[%emt 0:04:07]} 20. Kg2 {[%emt 0:00:04]} Re7 {[%emt 0:00:28]} 21. Bxh6 {[%emt 0:09:47]} gxh6 {[%emt 0:01:16]} 22. Qg6+ {[%emt 0:00:28]} Kf8 {[%emt 0:00:24]} 23. Qxh6+ {[%emt 0:00:20]} Ke8 {[%emt 0:00:24]} 24. Qh8+ {[%emt 0:00:43]} Kd7 {[%emt 0:00:05]} 25. Qxd4 {[%emt 0:00:26]} Kd8 {[%emt 0:04:18]} 26. Qh8+ {[%emt 0:09:34]} Re8 {[%emt 0:00:50]} 27. Qf6+ {[%emt 0:00:18]} Be7 {[%emt 0:01:43]} 28. Qxf7 {[%emt 0:02:21]} Rf8 {[%emt 0:02:09]} 29. Qh5 {[%emt 0:01:23]} Qf6 {[%emt 0:01:22]} 30. Qe2 {[%emt 0:02:45]} a6 {[%emt 0:02:24]} 31. Rb3 {[%emt 0:02:03]} Bh3+ {[%emt 0:00:50]} 32. Kg1 {[%emt 0:01:18]} Bc5 {[%emt 0:01:36]} 33. d4 {[%emt 0:01:26]} Qxd4 {[%emt 0:01:03]} 34. Bf3 {[%emt 0:01:01]} Bd7 {[%emt 0:02:50]} 35. Rd1 {[%emt 0:00:37]} Qxa4 {[%emt 0:01:42]} 36. Rxb7 {[%emt 0:00:40]} Bd4 {[%emt 0:00:45]} 37. b3 {[%emt 0:00:46]} Qc6 {[%emt 0:00:00]} 1-0